bitfinex-derivatives/quotes_ETHF0:USTF0_20250810
["timestamp","ask_amount","ask_price","bid_price","bid_amount"]
[1754864575099,0.418,4226.7,4226.1,1.5534]
[1754864575301,2.04591,4226.7,4226.6,1.2979]
[1754864576403,1.5728,4226.7,4226.6,1.5534]
[1754864578506,0.2569,4227.4,4227.3,1.2021]
[1754864578808,1.3079,4227.4,4227.3,1.5534]
[1754864579106,1.5728,4227.4,4227.3,1.5534]
[1754864579901,1.3079,4227.4,4227.3,1.5534]
[1754864580103,1.5728,4227.4,4227.3,1.5534]
[1754864580600,1.3079,4227.4,4227.3,1.5534]
[1754864580802,0.4297,4227.4,4227.3,1.5534]
[1754864581109,0.2569,4227.4,4227.3,1.5534]
[1754864581704,0.696,4227.7,4227.6,0.1699]
[1754864581900,1.1257,4227.7,4227.6,2.02641]
[1754864582097,1.5728,4227.7,4227.6,2.02641]
[1754864582507,1.5728,4227.7,4227.6,1.5534]
[1754864582905,0.8768,4227.4,4227.3,1.77094]
[1754864583105,1.5728,4227.4,4227.3,2.02644]
[1754864583300,0.8477,4227.4,4227.3,2.02644]
[1754864583610,2.45149364,4228.8,4227.9,1.5534]
[1754864583611,1.78086,4228.0,4227.9,1.5534]
[1754864583906,2.04576,4228.0,4227.9,1.5534]
[1754864584107,1.5728,4228.0,4227.9,2.02638]
[1754864584603,1.3079,4228.0,4227.9,2.02638]
[1754864584805,0.57043427,4228.4,4228.3,2.02633]
[1754864585004,0.4297,4228.6,4228.5,2.02631]
[1754864585210,1.5728,4228.9,4228.8,2.02627]
[1754864585799,0.4034,4229.2,4229.0,0.47284]
[1754864586109,0.4507,4229.5,4229.4,0.47281]
[1754864586309,0.4507,4229.8,4229.7,0.47277]
[1754864586608,1.3042,4229.8,4229.7,0.6185]
[1754864586811,1.3042,4229.8,4229.7,1.5296]
[1754864587606,1.3042,4229.8,4229.7,0.1791]
[1754864587803,0.57177277,4230.7,4228.0,0.19427679]
[1754864587804,1.569,4229.2,4229.1,0.8726]
[1754864588007,1.569,4229.2,4229.1,1.1281]
[1754864588206,1.569,4229.2,4229.1,1.5296]
[1754864588707,1.569,4229.2,4229.1,1.1281]
[1754864589108,1.569,4229.2,4229.1,1.5296]
[1754864590206,1.569,4229.2,4229.1,0.6123]
[1754864590409,1.569,4228.9,4228.8,0.8678]
[1754864590613,1.569,4228.9,4228.8,0.3582]
[1754864591312,1.569,4228.9,4228.8,0.6123]
[1754864591707,1.60114,4229.1,4229.0,1.5296]
[1754864592111,2.04184,4229.1,4229.0,0.6123]
[1754864592708,0.65928,4228.8,4228.7,0.5096]
[1754864592915,2.04188,4228.8,4228.7,0.8678]
[1754864593214,0.6266,4228.5,4228.4,1.0138]
[1754864593411,0.8541,4228.5,4228.4,2.00252]
[1754864593712,0.4507,4228.5,4228.4,1.5296]
[1754864593907,0.8541,4228.5,4228.4,1.5296]
[1754864594103,1.1283,4228.5,4228.4,1.5296]
[1754864594308,0.8541,4228.5,4228.4,1.5296]
[1754864594709,1.60121,4228.5,4228.4,1.5296]
[1754864594904,1.77711,4228.5,4228.4,1.5296]
[1754864595110,0.9424,4229.4,4228.7,0.5096]
[1754864595310,2.04181,4229.4,4229.3,0.1791]
[1754864595616,2.04181,4229.4,4228.6,0.47289]
[1754864595617,1.569,4228.8,4228.7,1.5296]
[1754864595816,1.89515017,4228.8,4228.7,1.5296]
[1754864596116,1.62095017,4228.8,4228.7,1.5296]
[1754864596517,1.62095017,4228.8,4228.7,2.00249]
[1754864596919,2.09383017,4228.8,4228.7,1.5296]
[1754864597217,2.36803017,4228.8,4228.7,1.5296]
[1754864597925,1.89515017,4228.8,4228.7,1.5296]
[1754864598619,1.3042,4228.8,4228.7,1.5296]
[1754864599522,0.8541,4228.8,4228.7,1.5296]
[1754864599721,0.4507,4228.8,4228.7,1.5296]
[1754864600322,0.47286,4229.0,4228.8,0.47288]
[1754864600519,2.19210017,4229.1,4229.0,1.5296]
[1754864600822,2.63280017,4229.1,4229.0,1.5296]
[1754864602125,1.77697,4229.7,4229.6,1.2741]
[1754864602325,1.3042,4229.7,4229.6,2.00239]
[1754864602518,0.2643,4229.7,4229.6,1.5296]
[1754864602821,0.4507,4229.2,4229.1,0.91223]
[1754864603023,1.569,4229.2,4229.1,1.08513]
[1754864603224,1.569,4229.2,4229.1,2.00243]
[1754864603421,0.47275,4230.0,4229.7,0.47277]
[1754864603621,0.47275,4230.0,4229.7,1.5296]
[1754864603622,0.4507,4229.8,4229.7,1.5296]
[1754864603822,1.77696,4229.8,4229.7,1.5296]
[1754864604021,1.3042,4229.4,4229.3,0.6123]
[1754864604219,2.15995017,4229.4,4229.3,0.6123]
[1754864604721,2.15995017,4229.4,4229.3,0.8678]
[1754864606031,2.15995017,4229.4,4229.3,1.2693]
[1754864606732,2.15995017,4229.4,4229.3,0.6123]
[1754864607527,2.15995017,4229.4,4229.3,1.2693]
[1754864607726,2.15995017,4229.4,4229.3,1.5296]
[1754864608332,1.89515017,4229.4,4229.3,1.5296]
[1754864609630,2.04178,4229.7,4229.6,1.5296]
[1754864609931,0.9235,4229.5,4229.4,0.4728]
[1754864610235,1.569,4229.5,4229.4,1.0851]
[1754864610429,1.569,4229.5,4229.4,1.3406]
[1754864610629,1.569,4229.5,4229.4,1.7421]
[1754864611331,1.569,4229.3,4229.2,0.47283]
[1754864611634,2.15995017,4229.3,4229.2,0.72693]
[1754864611934,2.15995017,4229.3,4229.2,1.08513]
[1754864612324,2.15995017,4229.3,4229.2,0.6123]
[1754864612835,2.04184,4229.1,4229.0,0.6123]
[1754864613531,1.569,4229.1,4229.0,1.5296]
[1754864614636,1.569,4229.1,4229.0,1.1281]
[1754864615038,1.569,4229.1,4229.0,1.5296]
[1754864616130,0.6369,4228.8,4228.7,0.9201]
[1754864616440,0.8673,4228.2,4228.1,2.04534]
[1754864616936,1.1251,4228.2,4228.1,1.5724]
[1754864617137,1.3003,4228.2,4228.1,1.5724]
[1754864617735,0.8673,4228.2,4228.1,0.3689]
[1754864617939,0.8673,4228.2,4226.9,2.10320762]
[1754864617940,0.6369,4227.7,4227.6,1.49421]
[1754864618135,1.3003,4227.7,4227.6,1.49421]
[1754864618336,1.3003,4227.7,4227.6,1.0212]
[1754864618638,1.5548,4227.7,4227.6,0.6401]
[1754864618840,1.0241,4227.1,4227.0,0.1824]
[1754864619032,0.6369,4226.9,4226.8,0.6401]
[1754864619236,0.6369,4226.9,4225.5,2.94405245]
[1754864619237,1.5548,4226.7,4226.6,0.3689]
[1754864619637,1.5548,4226.7,4226.6,0.6401]
[1754864619838,2.02791,4226.7,4226.6,0.6401]
[1754864620033,2.02791,4226.7,4226.6,0.9201]
[1754864620240,1.5548,4226.7,4226.6,0.9201]
[1754864620540,1.5548,4226.7,4226.6,1.5724]
[1754864620938,1.5548,4226.7,4226.6,0.3689]
[1754864621443,1.5548,4226.7,4226.6,0.6401]
[1754864622243,0.57205245,4227.4,4225.6,0.9446]
[1754864622244,0.47314,4226.4,4225.6,0.9446]
[1754864622432,1.5548,4226.2,4226.1,0.6401]
[1754864622636,1.5548,4226.2,4226.1,0.3689]
[1754864622840,1.5548,4226.2,4226.1,0.6401]
[1754864623241,1.5548,4226.2,4226.1,0.3689]
[1754864623543,1.5548,4226.0,4225.5,0.28]
[1754864623739,1.5548,4225.5,4225.4,1.65774309]
[1754864624837,1.5548,4225.5,4225.4,1.93774309]
[1754864626045,0.4617,4226.1,4226.0,0.3689]
[1754864626242,1.1251,4226.1,4226.0,1.5724]
[1754864626643,1.3003,4226.1,4226.0,1.5724]
[1754864626842,1.5548,4226.1,4226.0,1.5724]
[1754864627239,1.0425,4226.1,4226.0,2.04559]
[1754864627444,0.4617,4226.1,4226.0,2.04559]
[1754864628743,0.2578,4226.9,4226.5,0.47313]
[1754864628948,1.1251,4226.8,4226.7,1.5724]
[1754864629147,1.3003,4226.8,4226.7,1.5724]
[1754864630250,1.5548,4226.8,4226.7,1.5724]
[1754864630644,0.47312,4226.6,4226.4,0.2712]
[1754864630848,1.5548,4226.1,4225.4,1.01764309]
[1754864631048,0.6634,4226.0,4225.4,1.01764309]
[1754864631252,0.6484,4225.9,4225.8,0.1824]
[1754864631551,1.5548,4225.9,4225.8,0.6401]
[1754864631745,1.5548,4225.9,4225.8,0.9201]
[1754864631942,1.5548,4225.9,4225.8,0.6401]
[1754864632147,1.5548,4225.5,4225.4,2.59004309]
[1754864632347,1.5548,4225.5,4225.4,2.19664309]
[1754864632545,1.5548,4225.5,4225.4,1.65774309]
[1754864633343,1.5548,4225.5,4225.4,2.59004309]
[1754864633539,0.8673,4225.5,4225.4,2.59004309]
[1754864633746,0.4617,4225.5,4225.4,2.59004309]
[1754864634547,0.2762,4225.8,4225.7,2.04562]
[1754864634843,1.0425,4225.9,4225.8,1.5724]
[1754864635048,1.3003,4225.9,4225.8,1.5724]
[1754864635248,0.4617,4225.9,4225.8,2.04561]
[1754864635749,0.8673,4225.9,4225.8,2.04561]
[1754864636051,1.1251,4225.9,4225.8,2.04561]
[1754864636240,1.18278,4226.7,4225.8,2.04561]
[1754864636241,1.0425,4226.3,4226.2,0.47316]
[1754864636446,1.3796,4226.6,4226.5,0.6278]
[1754864636650,1.3003,4226.6,4226.5,1.5724]
[1754864636946,0.2545,4226.9,4226.8,0.6278]
[1754864636947,0.4617,4226.9,4226.8,0.6278]
[1754864637251,1.2786,4227.1,4227.0,1.5724]
[1754864637550,1.2786,4227.1,4227.0,0.6401]
[1754864637551,1.5548,4227.1,4227.0,0.6401]
[1754864638052,1.5548,4227.1,4227.0,1.5724]
[1754864638243,1.3003,4227.1,4227.0,1.5724]
[1754864638444,1.5548,4227.1,4227.0,1.5724]
[1754864640954,1.5548,4227.1,4226.5,0.3934]
[1754864641250,1.5548,4227.1,4227.0,0.6401]
[1754864641447,1.3003,4227.1,4227.0,2.04547]
[1754864641643,1.3003,4227.1,4226.6,1.18279]
[1754864641644,1.3003,4227.4,4227.3,1.49424]
[1754864641952,34.3205,4227.7,4227.5,1.49421]
[1754864641953,34.066,4227.7,4227.5,1.49421]
[1754864642140,1.5548,4227.6,4227.5,1.5724]
[1754864642950,1.5548,4227.6,4227.5,1.179]
[1754864643550,0.47301,4227.7,4227.5,1.5724]
[1754864643755,2.02781,4227.7,4227.6,1.179]
[1754864643955,2.02781,4227.7,4227.6,0.6401]
[1754864646457,2.02781,4227.7,4227.6,1.1566]
[1754864646757,0.47299,4227.8,4227.6,0.6278]
[1754864646956,0.47299,4227.8,4227.7,1.5189]
[1754864647148,0.91889,4227.8,4227.7,1.5189]
[1754864647459,1.77569,4227.8,4227.7,1.5189]
[1754864648154,2.05463,4227.5,4227.4,1.2598]
[1754864648355,2.05463,4227.5,4227.4,1.5189]
[1754864648853,1.77573,4227.5,4227.4,1.5189]
[1754864649054,1.3027,4227.5,4227.4,1.5189]
[1754864649254,0.4459,4227.5,4227.4,1.5189]
[1754864649452,0.2684,4227.5,4227.4,1.5189]
[1754864649647,0.2789,4228.5,4227.7,1.2598]
[1754864649850,1.18213,4229.1,4228.7,0.3508]
[1754864649851,1.6707466,4228.8,4228.7,0.3508]
[1754864650251,1.10047,4228.8,4228.7,0.6152]
[1754864650553,2.05447,4228.8,4228.7,0.6152]
[1754864650755,2.05452,4228.4,4228.3,1.5189]
[1754864651154,2.05452,4228.4,4228.3,1.1319]
[1754864651847,2.05452,4228.4,4228.3,1.5189]
[1754864653254,0.47287,4228.8,4228.4,0.47292]
[1754864653456,1.31787,4228.8,4228.7,1.5189]
[1754864653658,0.47287,4228.8,4228.7,1.5189]
[1754864654361,1.31787,4228.8,4228.7,1.5189]
[1754864654567,0.4459,4229.1,4229.0,1.5189]
[1754864654862,1.59384,4229.1,4229.0,1.5189]
[1754864655058,1.77554,4229.1,4229.0,1.5189]
[1754864655358,23.09099,4229.5,4227.1,0.18950991]
[1754864655359,1.31792,4228.4,4228.3,1.5189]
[1754864655566,0.47292,4228.4,4228.3,1.5189]
[1754864656151,0.91882,4228.4,4228.3,1.5189]
[1754864656357,2.05452,4228.4,4228.3,1.5189]
[1754864656662,2.05452,4228.4,4228.3,1.1319]
[1754864657951,1.5816,4228.4,4228.1,0.2644]
[1754864658152,1.5816,4228.4,4227.8,0.6084]
[1754864658153,1.5816,4227.9,4227.8,0.6084]
[1754864658357,1.5816,4227.9,4227.8,1.2545]
[1754864658762,1.5816,4227.9,4227.8,1.5189]
[1754864661958,0.74136,4228.0,4227.9,0.909]
[1754864662165,1.59396,4228.0,4227.9,1.5189]
[1754864662463,2.05456,4228.0,4227.9,1.5189]
[1754864664564,2.05456,4228.0,4227.9,0.1739]
[1754864664967,1.59395,4228.1,4228.0,1.5189]
[1754864665264,1.77565,4228.1,4228.0,1.5189]
[1754864665465,2.05455,4228.1,4228.0,1.5189]
[1754864669363,1.3027,4228.1,4228.0,1.5189]
[1754864670370,1.89384366,4228.1,4228.0,1.5189]
[1754864672271,2.17274366,4228.1,4228.0,1.5189]
[1754864673368,2.17274366,4228.1,4228.0,1.1319]
[1754864673574,2.17274366,4228.1,4228.0,1.5189]
[1754864679768,2.17274366,4228.1,4227.6,0.473]
[1754864679969,1.5198,4227.0,4226.9,1.5633]
[1754864680172,1.18281,4226.6,4225.5,2.50910762]
[1754864680365,1.2607,4225.5,4225.4,1.01764309]
[1754864680570,1.5198,4225.5,4225.4,1.01764309]
[1754864680871,1.2607,4225.5,4225.4,1.01764309]
[1754864681079,1.5198,4225.5,4225.4,2.58094309]
[1754864681675,1.5198,4225.5,4225.4,1.63154309]
[1754864682974,1.5198,4225.5,4225.4,1.90964309]
[1754864683375,1.5198,4225.5,4225.4,1.01764309]
[1754864683674,1.5198,4225.5,4223.6,2.10320762]
[1754864683675,0.3829,4224.2,4223.0,0.6758]
[1754864683878,1.2607,4224.2,4224.1,1.5633]
[1754864684576,1.18315,4225.4,4224.1,1.5633]
[1754864684577,22.2749,4224.9,4224.1,0.9539]
[1754864684877,0.9865261,4225.5,4224.6,0.344]
[1754864684878,0.82193,4224.7,4224.6,0.344]
[1754864685074,1.09073,4224.7,4224.6,0.6139]
[1754864685276,0.6174,4224.7,4224.6,0.6139]
[1754864685473,1.5198,4224.7,4224.6,1.2979]
[1754864685868,0.47334,4224.6,4224.2,0.9539]
[1754864686167,22.5383,4224.7,4224.6,0.4059]
[1754864686374,23.1557,4224.7,4224.6,1.0153]
[1754864686678,23.4148,4224.7,4224.6,1.5633]
[1754864687279,23.1557,4224.7,4224.6,1.5633]
[1754864687582,22.3388,4224.7,4224.6,1.5633]
[1754864687875,21.896,4224.9,4224.7,0.47333]
[1754864688080,21.896,4224.9,4224.8,1.5633]
[1754864688480,22.3398,4224.9,4224.8,1.5633]
[1754864688872,0.4438,4224.9,4224.8,1.5633]
[1754864689376,1.56033,4225.6,4225.5,0.2654]
[1754864689574,23.88803,4225.6,4225.5,1.2979]
[1754864689781,23.88803,4225.6,4225.5,0.6139]
[1754864689979,2.1694361,4226.3,4225.5,2.03654]
[1754864689980,0.3829,4226.2,4225.5,2.03654]
[1754864690284,1.2456261,4226.3,4225.5,2.03654]
[1754864690285,35.06869,4226.0,4225.9,1.5633]
[1754864690577,35.06869,4226.0,4223.9,2.36712]
[1754864690578,0.8765,4226.5,4226.4,0.6094]
[1754864690778,0.8765,4226.5,4226.4,1.5633]
[1754864690983,0.6174,4226.5,4226.4,1.5633]
[1754864691186,22.3388,4226.5,4226.4,1.5633]
[1754864691376,23.1557,4226.5,4226.4,1.5633]
[1754864691576,23.4148,4226.5,4226.4,1.5633]
[1754864691774,23.4148,4226.5,4225.8,1.5633]
[1754864691775,1.2607,4225.9,4225.8,1.5633]
[1754864691992,0.8267,4225.9,4225.8,1.5633]
[1754864692286,23.1557,4226.3,4226.2,1.5633]
[1754864692484,23.4148,4226.3,4226.2,0.6139]
[1754864692881,23.4148,4226.3,4226.2,0.344]
[1754864693189,23.4148,4226.3,4225.6,0.6094]
[1754864693190,0.6174,4225.7,4225.6,0.6094]
[1754864693390,1.5198,4225.7,4225.6,1.0153]
[1754864693881,1.5198,4225.7,4225.6,1.5633]
[1754864695390,1.5198,4225.7,4225.1,0.8793]
[1754864695391,0.47328,4225.2,4225.1,0.8793]
[1754864695582,1.99308,4225.2,4225.1,1.5633]
[1754864695884,0.47324,4225.5,4225.4,1.5633]
[1754864696190,1.73394,4225.5,4225.4,1.5633]
[1754864696387,1.99304,4225.5,4225.4,1.5633]
[1754864696583,1.2607,4225.5,4225.4,1.5633]
[1754864696885,0.47321,4225.8,4225.7,1.5633]
[1754864697090,0.91701,4225.8,4225.7,1.5633]
[1754864697289,1.29991,4225.8,4225.7,1.5633]
[1754864697485,1.73391,4225.8,4225.7,1.5633]
[1754864697884,0.8267,4225.8,4225.7,1.5633]
[1754864698085,0.4438,4225.8,4225.7,1.5633]
[1754864698385,0.1736,4225.6,4225.5,0.6139]
[1754864698593,1.09063,4225.6,4225.5,1.5633]
[1754864698794,1.47353,4225.6,4225.5,1.5633]
[1754864698984,1.2607,4225.6,4225.5,1.5633]
[1754864699184,1.5198,4225.6,4225.5,1.5633]
[1754864699491,0.8267,4225.6,4225.5,1.5633]
[1754864699686,0.4438,4225.6,4225.5,2.03654]
[1754864700283,1.076,4225.8,4225.7,0.344]
[1754864700487,1.5198,4225.8,4225.7,1.5633]
[1754864700682,1.2607,4225.8,4225.7,1.5633]
[1754864701289,0.47318,4226.1,4226.0,1.5633]
[1754864701495,23.88198,4226.1,4226.0,0.1744]
[1754864702090,1.99298,4226.1,4226.0,0.6139]
[1754864702289,23.88198,4226.1,4226.0,0.6139]
[1754864702680,1.5198,4225.8,4225.7,1.5633]
[1754864703080,0.175,4226.2,4226.1,0.1696]
[1754864703288,23.88096,4226.2,4226.1,1.5633]
[1754864703487,0.4732,4226.0,4225.6,1.15722]
[1754864703689,0.5579,4226.0,4225.9,1.5633]
[1754864703888,0.175,4226.0,4225.9,1.5633]
[1754864704592,22.3308,4226.0,4225.9,1.5633]
[1754864704991,22.7137,4226.0,4225.9,1.5633]
[1754864705194,22.8873,4226.0,4225.9,1.5633]
[1754864705489,23.4058,4226.0,4225.9,1.5633]
[1754864706281,23.99750048,4226.0,4225.9,1.5633]
[1754864706490,23.73840048,4226.0,4225.9,1.5633]
[1754864706791,23.75200048,4226.0,4225.9,1.5633]
[1754864706985,24.00920048,4226.0,4225.9,1.5633]
[1754864707190,24.00820048,4226.0,4225.9,1.5633]
[1754864708093,23.75100048,4226.0,4225.9,1.5633]
[1754864708293,1.86600048,4226.0,4225.9,1.5633]
[1754864708593,23.75000048,4226.0,4225.9,1.5633]
[1754864709390,23.48700048,4226.0,4225.9,1.5633]
[1754864709798,22.91950048,4226.0,4225.9,1.5633]
[1754864710391,23.75230048,4226.0,4225.9,1.5633]
[1754864710591,24.00950048,4226.0,4225.9,1.5633]
[1754864711999,24.00750048,4226.0,4225.9,1.5633]
[1754864712198,24.00650048,4226.0,4225.9,1.5633]
[1754864713001,2.12550048,4226.0,4225.9,1.5633]
[1754864713198,24.00650048,4226.0,4225.9,1.5633]
[1754864713399,21.88,4226.0,4225.9,1.5633]
[1754864713595,0.47312,4226.6,4226.5,1.5643]
[1754864713803,22.35312,4226.6,4226.5,1.5643]
[1754864715195,22.35212,4226.6,4226.5,1.5643]
[1754864715397,1.23990048,4226.9,4226.5,1.5643]
[1754864715595,0.47309,4226.9,4226.8,0.6269]
[1754864715790,23.18959,4226.9,4226.8,1.5643]
[1754864716001,23.63719,4226.9,4226.8,1.5643]
[1754864716198,24.48609048,4226.9,4226.8,1.5643]
[1754864717196,21.878,4226.9,4226.8,1.5643]
[1754864717697,22.3313,4226.9,4226.8,1.5643]
[1754864717902,22.7165,4226.9,4226.8,1.5643]
[1754864718298,0.272,4226.9,4226.8,1.5643]
[1754864718490,22.148,4226.9,4226.8,1.5643]
[1754864719297,0.272,4226.9,4226.8,1.5643]
[1754864719501,0.47308,4227.0,4226.9,1.5643]
[1754864719702,22.34708,4227.0,4226.9,1.5643]
[1754864719899,0.47308,4227.0,4226.9,1.5643]
[1754864720301,0.263,4227.3,4226.1,1.18294]
[1754864720302,1.18241,4228.1,4227.0,1.5643]
[1754864720505,0.47303,4227.4,4227.3,1.5643]
[1754864721004,1.31153,4227.4,4227.3,1.5643]
[1754864721207,1.57453,4227.4,4227.3,1.5643]
[1754864721407,1.75913,4227.4,4227.3,1.5643]
[1754864721600,2.01633,4227.4,4227.3,1.5643]
[1754864723400,0.9054,4227.4,4226.8,0.645]
[1754864723703,2.01639,4226.9,4226.8,0.1792]
[1754864723906,1.5433,4226.5,4226.4,1.5643]
[1754864724102,2.13500048,4226.5,4226.4,1.5643]
[1754864725102,2.60813048,4226.5,4226.1,0.6584]
[1754864725405,1.0231,4226.4,4226.3,1.5643]
[1754864725805,1.0231,4226.4,4226.0,0.47318]
[1754864725806,0.47315,4226.3,4226.0,0.5571]
[1754864726104,1.5433,4226.1,4226.0,0.645]
[1754864726305,1.5433,4226.1,4226.0,0.924]
[1754864726507,1.5433,4226.1,4226.0,1.3043]
[1754864726703,0.6482,4226.0,4225.8,0.2781]
[1754864726904,0.47317,4226.2,4224.7,0.6269]
[1754864726905,0.4533,4224.8,4224.7,0.6269]
[1754864727099,1.1015,4224.8,4224.7,1.5643]
[1754864727305,0.4533,4225.3,4225.2,0.6269]
[1754864727607,0.4533,4225.3,4225.2,1.5643]
[1754864727802,1.5433,4225.3,4225.2,1.5643]
[1754864728002,1.5433,4225.3,4225.2,0.924]
[1754864728397,0.9054,4225.2,4225.0,0.9374]
[1754864728604,1.5433,4225.2,4225.1,1.184]
[1754864728804,1.5433,4225.2,4225.1,1.5643]
[1754864729103,1.2861,4225.2,4225.1,1.5643]
[1754864729508,1.5433,4225.2,4225.1,1.5643]
[1754864730908,22.9695,4225.4,4225.3,1.5643]
[1754864731606,23.1541,4225.4,4225.3,1.5643]
[1754864731811,23.4113,4225.4,4225.3,1.184]
[1754864732207,0.47326,4225.3,4225.0,0.9374]
[1754864732407,1.5433,4225.1,4225.0,1.3043]
[1754864732606,1.5433,4225.1,4225.0,0.645]
[1754864733009,1.5433,4225.1,4225.0,0.924]
[1754864733207,1.5433,4225.1,4225.0,1.5643]
[1754864734301,1.5433,4225.1,4225.0,2.0376]
[1754864734607,1.2861,4225.1,4225.0,2.0376]
[1754864735204,1.2861,4225.1,4225.0,1.5643]
[1754864737402,0.8698,4225.4,4225.3,0.6173]
[1754864737607,23.0159,4225.4,4225.3,1.5599]
[1754864737909,22.3321,4225.4,4225.3,1.5599]
[1754864738112,23.4645,4225.4,4225.3,1.5599]
[1754864738812,1.5975,4225.4,4225.3,1.5599]
[1754864739113,23.4635,4225.4,4225.3,1.5599]
[1754864739310,23.1865,4225.4,4225.3,1.5599]
[1754864739708,22.9074,4225.4,4225.3,1.5599]
[1754864740805,0.75023,4225.7,4225.3,0.9426]
[1754864741011,2.07073,4225.7,4225.6,1.5599]
[1754864741202,23.93573,4225.7,4225.6,1.5599]
[1754864742407,23.93573,4225.7,4225.5,0.47323]
[1754864742408,1.5975,4224.6,4224.5,1.5599]
[1754864743909,2.07084,4224.6,4224.5,1.5599]
[1754864744109,0.6367,4224.0,4223.9,1.50332]
[1754864744313,1.3205,4224.0,4223.9,1.50332]
[1754864744609,1.5975,4224.0,4223.9,1.50332]
[1754864744805,1.5975,4224.0,4223.9,1.1473]
[1754864745116,1.5975,4224.0,4223.9,0.613]
[1754864746710,1.4259,4223.6,4223.5,0.47346]
[1754864746910,1.5975,4223.6,4223.5,0.613]
[1754864747112,0.47349,4223.4,4223.2,0.2619]
[1754864747316,1.5975,4223.3,4223.2,0.613]
[1754864747714,1.79394,4223.8,4223.7,1.5599]
[1754864747910,23.65794,4223.8,4223.7,1.5599]
[1754864748110,23.93494,4223.8,4223.7,1.5599]
[1754864748611,23.4615,4223.8,4223.7,1.5599]
[1754864749119,1.3205,4223.8,4223.7,2.03334]
[1754864749419,23.1855,4223.8,4223.7,2.03334]
[1754864749615,23.4625,4223.8,4223.7,2.03334]
[1754864750211,23.4625,4223.8,4223.7,1.5599]
[1754864751814,23.4625,4223.8,4223.7,0.1704]
[1754864752419,1.5975,4223.5,4223.4,1.76717]
[1754864752721,23.93597,4223.5,4223.4,0.613]
[1754864752925,23.93597,4223.5,4223.3,0.47348]
[1754864752926,1.5975,4223.4,4223.3,0.47348]
[1754864753220,1.11021,4223.1,4223.0,0.613]
[1754864753421,22.97521,4223.1,4223.0,0.613]
[1754864753722,23.4625,4223.1,4223.0,0.613]
[1754864754421,23.4625,4223.1,4223.0,0.3511]
[1754864754820,23.4625,4223.1,4223.0,1.5599]
[1754864756225,1.5975,4223.1,4223.0,1.5599]
[1754864756415,0.2791,4224.0,4223.4,1.49907]
[1754864756621,1.11016,4223.6,4223.5,1.5599]
[1754864756820,22.97616,4223.6,4223.5,1.5599]
[1754864757327,23.93696,4223.6,4223.5,1.5599]
[1754864757524,0.47352,4223.1,4222.1,0.47362]
[1754864757728,23.4635,4223.0,4222.9,2.03343]
[1754864757917,22.9074,4223.0,4222.9,2.03343]
[1754864758317,22.5027,4223.0,4222.9,2.03343]
[1754864758516,22.5027,4223.0,4222.9,1.5599]
[1754864758728,23.4635,4223.0,4222.9,1.5599]
[1754864759030,23.4635,4223.0,4222.9,0.613]
[1754864759225,0.6367,4222.6,4221.8,0.9426]
[1754864759426,0.6367,4222.6,4221.5,1.18422]
[1754864759427,1.0414,4222.0,4221.9,2.03354]
[1754864760527,0.2791,4222.2,4222.1,1.09092]
[1754864761026,22.142,4222.3,4222.1,1.09092]
[1754864761027,0.277,4222.3,4222.1,1.09092]
[1754864761227,0.4651,4222.2,4222.1,1.09092]
[1754864761433,1.3205,4222.2,4222.1,1.09092]
[1754864761727,1.3205,4222.2,4222.1,2.03352]
[1754864762331,1.0414,4222.2,4222.1,2.03352]
[1754864762819,1.0414,4222.2,4221.5,1.18422]
[1754864762820,1.5975,4222.2,4221.8,1.15435]
[1754864763025,0.4651,4221.7,4221.6,0.6173]
[1754864763330,0.2814,4221.7,4221.6,0.6173]
[1754864763631,21.867,4222.3,4222.2,0.6173]
[1754864763826,1.4259,4222.4,4222.3,1.0299]
[1754864764132,1.5975,4222.4,4222.3,1.5599]
[1754864765034,2.07109,4222.4,4222.3,1.5599]
[1754864765224,1.5975,4222.4,4222.3,1.5599]
[1754864765728,0.6367,4222.4,4222.3,1.5599]
[1754864766034,0.92878,4222.5,4222.4,2.03329]
[1754864766335,1.3121,4222.5,4222.4,2.03329]
[1754864766932,1.5773,4222.5,4222.4,2.03329]
[1754864767633,1.5773,4222.5,4222.4,1.5597]
[1754864768533,23.4443,4222.5,4222.4,1.5597]
[1754864769623,0.627,4222.3,4222.2,2.03331]
[1754864769825,1.5773,4222.3,4222.2,2.03331]
[1754864772437,0.627,4221.7,4221.6,2.03338]
[1754864772636,1.57273168,4221.7,4221.6,2.03338]
[1754864773339,0.45063168,4221.7,4221.6,2.03338]
[1754864773933,22.911,4222.3,4222.2,0.74261]
[1754864774240,23.4443,4222.3,4222.2,1.5597]
[1754864774741,0.1863,4222.4,4222.3,1.1098]
[1754864775041,0.8722,4222.4,4222.3,2.0333]
[1754864775239,1.1403,4222.4,4222.3,2.0333]
[1754864775438,1.5773,4222.4,4222.3,2.0333]
[1754864776631,0.47353,4222.9,4222.8,0.47354]
[1754864776839,1.3121,4223.3,4223.2,1.5597]
[1754864777033,1.78559,4223.3,4223.2,1.5597]
[1754864777240,2.05079,4223.3,4223.2,1.2907]
[1754864777543,2.05079,4223.3,4223.2,0.9006]
[1754864777740,1.5773,4223.3,4223.2,0.9006]
[1754864777941,1.5773,4223.3,4223.2,1.5597]
[1754864778842,1.044,4223.3,4223.2,1.5597]
[1754864779047,1.5773,4222.8,4222.7,2.03325]
[1754864781134,1.5773,4222.8,4222.7,0.6264]
[1754864781435,0.47353,4222.9,4222.4,0.9289]